bitfinex/quotes_BTCUSD_20250110
["timestamp","ask_amount","ask_price","bid_price","bid_amount"]
[1736539635974,0.00374364,95502.0,95501.0,0.006]
[1736539636859,0.0460002,95502.0,95501.0,0.006]
[1736539637032,0.00374364,95502.0,95501.0,0.006]
[1736539637652,0.1080434,95502.0,95501.0,0.006]
[1736539637904,0.1080434,95502.0,95501.0,0.004]
[1736539638042,0.209474,95477.0,95473.0,1.5]
[1736539638412,0.00368551,95476.0,95473.0,1.5]
[1736539638610,0.209478,95475.0,95473.0,1.5]
[1736539639117,0.00364094,95474.0,95473.0,1.5]
[1736539639339,0.209509,95461.0,95444.0,0.1341933]
[1736539639555,0.00358233,95460.0,95444.0,0.12378065]
[1736539639758,0.00358233,95460.0,95445.0,1.5]
[1736539640903,0.00358233,95460.0,95459.0,0.0011706]
[1736539642935,0.25788209,95460.0,95459.0,0.0011706]
[1736539643110,0.40869054,95460.0,95459.0,0.0011706]
[1736539643332,0.33918209,95460.0,95459.0,0.0011706]
[1736539643550,0.00358233,95460.0,95459.0,0.0011706]
[1736539643759,0.01134233,95460.0,95459.0,0.0001706]
[1736539644192,0.01234233,95460.0,95459.0,0.0001706]
[1736539644625,0.01134233,95460.0,95459.0,0.0001706]
[1736539645230,0.05542081,95460.0,95459.0,0.0001706]
[1736539646076,0.01134233,95460.0,95459.0,0.0001706]
[1736539646278,0.11564209,95460.0,95459.0,0.0001706]
[1736539647142,0.26564209,95460.0,95459.0,0.0001706]
[1736539647340,0.31414209,95460.0,95459.0,0.0001706]
[1736539647735,0.31514209,95460.0,95459.0,0.0001706]
[1736539648744,0.31414209,95460.0,95459.0,0.0001706]
[1736539648956,0.33714209,95460.0,95459.0,0.0001706]
[1736539649183,0.33914209,95460.0,95459.0,0.0001706]
[1736539649343,0.41734209,95460.0,95459.0,0.0001706]
[1736539649908,0.41734209,95460.0,95459.0,0.0011706]
[1736539650114,0.51734209,95460.0,95459.0,0.0001706]
[1736539650560,0.51734209,95460.0,95459.0,0.0011706]
[1736539651129,0.51534209,95460.0,95459.0,0.0011706]
[1736539651367,0.51534209,95460.0,95459.0,0.0001706]
[1736539651564,0.51834209,95460.0,95459.0,0.0001706]
[1736539652078,0.61834209,95460.0,95459.0,0.0001706]
[1736539652320,0.61534209,95460.0,95459.0,0.0001706]
[1736539652567,0.51534209,95460.0,95459.0,0.0001706]
[1736539652766,0.61534209,95460.0,95459.0,0.0011706]
[1736539653040,0.61534209,95460.0,95459.0,0.0001706]
[1736539653456,0.51534209,95460.0,95459.0,0.0011706]
[1736539653662,0.61834209,95460.0,95459.0,0.0011706]
[1736539654242,0.51834209,95460.0,95459.0,0.0001706]
[1736539654418,0.51834209,95460.0,95459.0,0.0011706]
[1736539654848,0.51534209,95460.0,95459.0,0.0011706]
[1736539655056,0.38458209,95460.0,95459.0,0.0011706]
[1736539655264,0.39634209,95460.0,95459.0,0.0011706]
[1736539655892,0.39234209,95460.0,95459.0,0.0001706]
[1736539656075,0.39534209,95460.0,95459.0,0.0001706]
[1736539656267,0.39534209,95460.0,95459.0,0.0011706]
[1736539656519,0.39534209,95460.0,95459.0,0.0001706]
[1736539656630,0.39234209,95460.0,95459.0,0.0001706]
[1736539656843,0.39434209,95460.0,95459.0,0.0011706]
[1736539659750,0.51734209,95460.0,95459.0,0.0011706]
[1736539660142,0.51734209,95460.0,95459.0,6e-07]
[1736539660314,0.61734209,95460.0,95459.0,6e-07]
[1736539662337,0.61734209,95460.0,95434.0,0.0001706]
[1736539662338,0.1,95446.0,95434.0,0.0001706]
[1736539662544,0.023,95443.0,95434.0,0.0001706]
[1736539662772,0.209566,95435.0,95434.0,0.0001706]
[1736539662904,0.217326,95435.0,95434.0,0.0001706]
[1736539663106,0.22090645,95435.0,95434.0,0.0001706]
[1736539663965,0.22090645,95435.0,95434.0,0.0011706]
[1736539664147,0.22090645,95435.0,95434.0,0.0001706]
[1736539664360,0.00358045,95435.0,95434.0,0.0826706]
[1736539664606,0.209554,95441.0,95434.0,0.1296706]
[1736539664826,0.00356871,95435.0,95434.0,0.1296706]
[1736539665043,0.4610182,95441.0,95434.0,1.6296706]
[1736539665255,0.00356868,95435.0,95434.0,1.6296706]
[1736539665478,0.001,95435.0,95434.0,1.6296706]
[1736539665692,0.00856445,95435.0,95434.0,1.6296706]
[1736539665892,0.005,95435.0,95434.0,1.6296706]
[1736539666094,0.00456752,95435.0,95434.0,1.5826706]
[1736539666309,0.00456752,95435.0,95434.0,1.5836706]
[1736539666515,0.419122,95438.0,95434.0,1.5836706]
[1736539666733,0.419122,95438.0,95434.0,1.5826706]
[1736539666947,0.419122,95438.0,95434.0,1.5856706]
[1736539667137,0.481989,95438.0,95434.0,1.5856706]
[1736539667403,0.00359723,95437.0,95434.0,0.0001706]
[1736539667608,0.209564,95436.0,95434.0,0.0021706]
[1736539668055,0.00360131,95435.0,95434.0,0.0021706]
[1736539668901,0.00360131,95435.0,95434.0,0.0031706]
[1736539669325,0.03320201,95435.0,95434.0,0.0021706]
[1736539669723,0.03420201,95435.0,95434.0,0.0001706]
[1736539670071,0.00460131,95435.0,95434.0,0.0001706]
[1736539670755,0.00860131,95435.0,95434.0,0.0001706]
[1736539670980,0.005,95435.0,95434.0,1.6269706]
[1736539671913,0.001,95435.0,95434.0,1.6269706]
[1736539672584,0.419098,95443.0,95434.0,1.5808706]
[1736539672793,0.001,95435.0,95434.0,1.5808706]
[1736539673315,0.209542,95446.0,95434.0,1.5808706]
[1736539673518,0.00358845,95445.0,95434.0,2.0030056]
[1736539673754,0.209531,95452.0,95442.0,0.20955]
[1736539673959,0.00357635,95451.0,95442.0,0.20955]
[1736539674165,0.02131074,95450.0,95440.0,0.209555]
[1736539674688,0.209531,95452.0,95440.0,0.209555]
[1736539674922,0.209504,95464.0,95442.0,0.1225]
[1736539675070,0.00356979,95451.0,95449.0,0.209534]
[1736539675448,0.209504,95464.0,95449.0,0.209534]
[1736539675928,0.209507,95462.0,95449.0,0.209534]
[1736539676285,0.00359118,95461.0,95449.0,0.209534]
[1736539676855,0.001,95450.0,95445.0,0.209544]
[1736539676991,0.001,95450.0,95445.0,0.10429976]
[1736539677192,0.001,95450.0,95442.0,0.1225]
[1736539677432,0.00327551,95449.0,95442.0,0.1225]
[1736539678084,0.209523,95455.0,95442.0,0.1225]
[1736539678449,0.00327929,95454.0,95443.0,0.209549]
[1736539678665,0.00327929,95454.0,95450.0,0.209532]
[1736539679201,0.209506,95463.0,95450.0,0.209532]
[1736539679350,0.209506,95463.0,95451.0,1.5]
[1736539679549,0.00359861,95462.0,95452.0,0.209529]
[1736539679748,0.02237318,95461.0,95452.0,0.209529]
[1736539679986,0.00359861,95460.0,95452.0,0.209529]
[1736539680307,0.00359861,95460.0,95453.0,1.5]
[1736539680723,0.20951,95461.0,95453.0,1.5]
[1736539681330,0.00360525,95460.0,95453.0,1.5]
[1736539681737,0.209502,95465.0,95453.0,1.502]
[1736539681891,0.209502,95465.0,95453.0,1.501]
[1736539682318,0.209505,95463.0,95453.0,1.501]
[1736539682721,0.00360316,95462.0,95453.0,1.501]
[1736539683117,0.00360316,95462.0,95453.0,1.5]
[1736539683334,0.209509,95461.0,95453.0,1.503]
[1736539683567,0.209509,95461.0,95453.0,1.505]
[1736539683730,0.00359605,95460.0,95453.0,1.502]
[1736539683899,0.00359605,95460.0,95444.0,0.209545]
[1736539684096,0.209514,95459.0,95453.0,0.002]
[1736539684344,0.209514,95459.0,95453.0,0.001]
[1736539684699,0.209518,95457.0,95453.0,0.001]
[1736539684868,0.209518,95457.0,95444.0,1.709545]
[1736539685070,0.00359798,95456.0,95444.0,1.709545]
[1736539685400,0.209518,95457.0,95453.0,0.003]
[1736539685575,0.209514,95459.0,95453.0,0.003]
[1736539685818,0.22013422,95467.0,95453.0,0.003]
[1736539685819,0.00359287,95458.0,95453.0,0.003]
[1736539685999,0.00359287,95458.0,95453.0,0.212525]
[1736539686228,0.01053214,95471.0,95453.0,0.212525]
[1736539686422,0.209505,95463.0,95453.0,0.212525]
[1736539686628,0.209505,95463.0,95453.0,0.209525]
[1736539686861,0.00359357,95462.0,95453.0,0.210525]
[1736539686987,0.00359357,95462.0,95456.0,0.209518]
[1736539687202,0.209489,95470.0,95456.0,0.209518]
[1736539687203,0.209497,95467.0,95456.0,0.209518]
[1736539687582,0.001,95463.0,95461.0,0.1292]
[1736539687792,0.209448,95489.0,95462.0,0.10429976]
[1736539687993,0.209463,95482.0,95469.0,0.20949]
[1736539688203,0.15,95481.0,95470.0,0.10429976]
[1736539688406,0.15,95481.0,95471.0,1.5]
[1736539688407,0.15360633,95481.0,95471.0,1.5]
[1736539688675,0.00360633,95481.0,95471.0,1.60429976]
[1736539688893,0.209463,95482.0,95471.0,1.60429976]
[1736539689082,0.2733455,95482.0,95471.0,1.60429976]
[1736539689514,0.209467,95480.0,95471.0,1.60429976]
[1736539689922,0.00361144,95479.0,95471.0,1.60429976]
[1736539690299,0.00361144,95479.0,95462.0,0.209506]
[1736539690511,0.209472,95478.0,95464.0,0.209503]
[1736539690697,0.209476,95476.0,95464.0,0.31380276]
[1736539691047,0.00327941,95475.0,95464.0,0.10429976]
[1736539691239,0.00327941,95475.0,95471.0,0.004]
[1736539691414,0.00327941,95475.0,95471.0,0.006]
[1736539691617,0.209481,95474.0,95471.0,0.002]
[1736539691821,0.209485,95472.0,95471.0,0.002]
[1736539692208,0.21277244,95472.0,95471.0,0.002]
[1736539692635,0.21277244,95472.0,95471.0,0.005]
[1736539692858,0.21277244,95472.0,95471.0,0.003]
[1736539693890,0.21277244,95472.0,95456.0,1.5]
[1736539694095,0.209506,95463.0,95456.0,1.5]
[1736539694455,0.00361313,95462.0,95456.0,1.5]
[1736539695559,0.209509,95461.0,95456.0,1.503]
[1736539695758,0.209509,95461.0,95456.0,1.5]
[1736539695988,0.00361109,95460.0,95456.0,1.5]
[1736539696520,0.00328188,95459.0,95456.0,1.5]
[1736539696863,0.209506,95463.0,95456.0,1.502]
[1736539697249,0.209509,95461.0,95456.0,1.502]
[1736539697455,0.209518,95457.0,95456.0,1.5]
[1736539697854,0.21312574,95457.0,95456.0,1.506]
[1736539698220,0.36312574,95457.0,95456.0,0.002]
[1736539698337,0.45124201,95457.0,95456.0,0.002]
[1736539698547,0.48050087,95457.0,95456.0,0.006]
[1736539698789,0.48050087,95457.0,95456.0,0.002]
[1736539699225,0.15,95456.0,95429.0,1.5]
[1736539699430,0.20956,95438.0,95429.0,1.5]
[1736539699600,0.41912,95438.0,95429.0,1.5]
[1736539699941,0.44042834,95438.0,95429.0,1.5]
[1736539700185,0.209564,95436.0,95429.0,1.5]
[1736539700390,0.0032664,95435.0,95429.0,1.5]
[1736539701626,0.0032664,95435.0,95434.0,0.0011706]
[1736539702487,0.1532664,95435.0,95434.0,0.0011706]
[1736539702693,0.1951669,95435.0,95434.0,0.0011706]
[1736539702917,0.1532664,95435.0,95434.0,0.0011706]
[1736539703320,0.0032664,95435.0,95434.0,0.0011706]
[1736539704163,0.0042664,95435.0,95434.0,0.0001706]
[1736539704298,0.0052664,95435.0,95434.0,0.0001706]
[1736539704710,0.0062664,95435.0,95434.0,0.0001706]
[1736539704916,0.0052664,95435.0,95434.0,0.0001706]
[1736539705168,0.002,95435.0,95434.0,0.0001706]
[1736539705411,0.002,95435.0,95434.0,1.5001706]
[1736539705707,0.00595574,95435.0,95434.0,1.5001706]
[1736539705913,0.023156,95435.0,95434.0,1.5001706]
[1736539706144,0.002,95435.0,95434.0,1.5001706]
[1736539706351,0.20956,95438.0,95434.0,1.5001706]
[1736539706551,0.01038699,95444.0,95434.0,1.5001706]
[1736539706552,0.209548,95444.0,95434.0,1.5001706]
[1736539706751,0.00395801,95437.0,95434.0,1.5001706]
[1736539706959,0.209555,95441.0,95434.0,1.5001706]
[1736539707135,0.001,95435.0,95434.0,1.5001706]
[1736539707338,0.00396142,95440.0,95434.0,1.5001706]
[1736539707537,0.00396029,95435.0,95434.0,1.5011706]
[1736539707773,0.209548,95444.0,95435.0,0.209566]
[1736539707774,0.005,95444.0,95435.0,0.209566]
[1736539708157,0.209541,95447.0,95435.0,0.209566]
[1736539708335,0.00396255,95443.0,95434.0,1.5061706]
[1736539708538,0.209535,95450.0,95435.0,0.209566]
[1736539708738,0.209538,95448.0,95436.0,0.209564]
[1736539708942,0.209538,95448.0,95436.0,0.20949492]
[1736539709166,0.209535,95450.0,95436.0,0.20949492]
[1736539709347,0.209545,95445.0,95435.0,0.002]
[1736539709541,0.209563,95437.0,95435.0,0.002]
[1736539710029,0.209561,95438.0,95435.0,0.002]
[1736539710218,0.00776,95449.0,95435.0,0.003]
[1736539710418,0.0035704,95437.0,95435.0,0.003]
[1736539710619,0.209557,95440.0,95435.0,0.002]
[1736539710924,0.209557,95440.0,95435.0,0.001]
[1736539711228,0.209551,95443.0,95435.0,0.001]
[1736539711435,0.210551,95443.0,95434.0,1.5001706]
[1736539711644,0.209551,95443.0,95434.0,1.5001706]
[1736539711878,0.209551,95443.0,95435.0,0.001]
[1736539712052,0.209551,95443.0,95435.0,0.002]
[1736539712262,0.01041402,95450.0,95435.0,0.001]
[1736539712417,0.209543,95446.0,95435.0,0.001]
[1736539712767,0.21055,95443.0,95435.0,0.001]
[1736539713144,0.00396254,95442.0,95435.0,0.001]
[1736539713343,0.209553,95441.0,95435.0,0.001]
[1736539713574,0.209553,95441.0,95434.0,0.0001706]
[1736539713763,0.00356424,95440.0,95434.0,0.0001706]
[1736539714567,0.20955,95443.0,95434.0,0.0001706]
[1736539714771,0.00356643,95442.0,95434.0,0.0001706]
[1736539714972,0.00356643,95442.0,95440.0,0.077]
[1736539715181,0.09408969,95464.0,95441.0,0.10534736]
[1736539715413,0.209508,95462.0,95447.0,0.209538]
[1736539715609,0.00328312,95463.0,95447.0,0.209538]
[1736539715610,0.00328312,95463.0,95450.0,0.209531]
[1736539715821,0.00360939,95461.0,95457.0,0.209518]
[1736539715964,0.09408969,95483.0,95459.0,0.077]
[1736539716343,0.00302569,95482.0,95468.0,0.209494]
[1736539716540,0.00302569,95482.0,95469.0,0.10429976]
[1736539716735,0.209458,95485.0,95469.0,0.10429976]
[1736539716877,0.00329585,95481.0,95469.0,0.10429976]
[1736539717096,0.209458,95485.0,95470.0,1.709489]
[1736539717294,0.00329585,95480.0,95470.0,1.5]
[1736539717534,0.209465,95481.0,95470.0,1.5]
[1736539717955,0.0418923,95480.0,95470.0,1.5]
[1736539718693,0.0418923,95480.0,95470.0,1.502]
[1736539719936,0.20947,95479.0,95470.0,1.504]
[1736539720213,0.209465,95481.0,95470.0,1.504]
[1736539720214,0.00360269,95478.0,95470.0,1.502]
[1736539720420,0.00360269,95478.0,95470.0,1.503]
[1736539720620,0.209465,95481.0,95470.0,1.503]
[1736539720855,0.209465,95481.0,95470.0,1.502]
[1736539721243,0.209465,95481.0,95470.0,1.503]
[1736539721500,0.209465,95482.0,95470.0,1.503]
[1736539721673,0.209465,95482.0,95470.0,1.5]
[1736539721879,0.209465,95482.0,95471.0,0.254487]
[1736539722269,0.00328269,95481.0,95471.0,0.045]
[1736539722465,0.00328269,95481.0,95472.0,1.5]
[1736539722676,0.209467,95480.0,95472.0,1.5]
[1736539722971,0.209453,95487.0,95473.0,0.31378276]
[1736539723169,0.00328083,95479.0,95470.0,0.001]
[1736539723328,0.15,95489.0,95471.0,0.001]
[1736539723528,0.2127529,95478.0,95465.0,0.2095]
[1736539723736,0.209473,95478.0,95470.0,0.001]
[1736539723997,0.00301708,95477.0,95470.0,0.001]
[1736539724244,0.00301708,95477.0,95407.0,0.3]
[1736539724245,0.00301708,95477.0,95476.0,0.292176]
[1736539724422,0.00301708,95477.0,95476.0,0.39647576]
[1736539724626,8.54e-05,95498.0,95476.0,0.23569976]
[1736539724840,8.54e-05,95498.0,95491.0,1.5]
[1736539726787,0.0010854,95498.0,95491.0,1.5]
[1736539726987,0.0010854,95498.0,95491.0,1.503]
[1736539727370,8.54e-05,95498.0,95491.0,1.503]
[1736539727792,8.54e-05,95498.0,95491.0,1.504]
[1736539728271,8.54e-05,95498.0,95491.0,1.5]
[1736539728462,8.54e-05,95498.0,95491.0,1.502]
[1736539728670,8.54e-05,95498.0,95491.0,1.506]
[1736539730192,0.2095144,95498.0,95491.0,1.506]
[1736539730442,0.00303005,95497.0,95491.0,1.506]
[1736539731242,0.00303005,95497.0,95491.0,1.504]
[1736539731540,0.00303005,95497.0,95491.0,1.502]
[1736539731746,0.00303005,95497.0,95491.0,1.506]
[1736539733634,8.54e-05,95498.0,95491.0,1.61029976]
[1736539733810,8.54e-05,95498.0,95492.0,0.10534683]
[1736539734016,8.54e-05,95498.0,95492.0,0.10429976]
[1736539735038,8.54e-05,95498.0,95492.0,0.31573976]
[1736539735251,8.54e-05,95498.0,95492.0,0.10629976]
[1736539735596,8.54e-05,95498.0,95492.0,0.006]
[1736539735597,0.2095154,95498.0,95492.0,0.006]
[1736539736035,0.23048401,95498.0,95492.0,0.006]
[1736539736237,0.2095154,95498.0,95492.0,0.006]
[1736539736451,0.00303734,95497.0,95492.0,0.006]
[1736539736731,0.209432,95496.0,95492.0,0.006]
[1736539736902,0.209432,95496.0,95492.0,0.004]
[1736539737103,0.00303815,95495.0,95492.0,0.005]
[1736539737504,0.00303815,95495.0,95493.0,1.5]
[1736539737712,0.209437,95494.0,95493.0,1.5]
[1736539738044,0.00303815,95495.0,95493.0,1.5]
[1736539738240,0.003039,95494.0,95493.0,1.5]
[1736539738441,0.209432,95496.0,95493.0,1.5]
[1736539739271,0.209432,95496.0,95492.0,0.002]
[1736539739671,0.209432,95496.0,95495.0,1.5]
[1736539740898,0.209432,95496.0,95495.0,1.501]
[1736539741304,0.209432,95496.0,95495.0,1.5]
[1736539741705,0.27330771,95496.0,95495.0,1.501]
[1736539741922,0.209432,95496.0,95495.0,1.501]
[1736539743032,0.209432,95496.0,95495.0,1.5]
[1736539743423,0.209432,95496.0,95495.0,1.501]
[1736539743651,0.21248981,95496.0,95495.0,0.001]
[1736539743827,0.42192281,95496.0,95493.0,0.003]
[1736539744086,0.209437,95494.0,95493.0,0.003]
[1736539744415,0.209473,95478.0,95471.0,1.5]
[1736539744641,0.07220309,95495.0,95471.0,1.5]
[1736539744846,0.209466,95481.0,95471.0,1.5]
[1736539745248,0.209474,95477.0,95471.0,1.5]
[1736539745445,0.209484,95473.0,95471.0,1.5]
[1736539745661,0.21250781,95476.0,95471.0,1.5]
[1736539745862,0.209476,95476.0,95471.0,1.5]
[1736539746264,0.418963,95474.0,95471.0,1.5]
[1736539746665,0.0829,95478.0,95448.0,0.209538]
[1736539746666,0.209512,95460.0,95448.0,0.209538]
[1736539746879,0.209512,95460.0,95451.0,0.209529]
[1736539747080,0.00303348,95459.0,95458.0,1.5]
[1736539747409,0.209507,95462.0,95458.0,1.5]
[1736539747765,0.21281355,95461.0,95458.0,1.5]
[1736539747967,0.21281355,95461.0,95438.0,0.0763]
[1736539747968,0.0754,95460.0,95438.0,0.0763]
[1736539748148,0.0754,95460.0,95439.0,0.31385676]
[1736539748149,0.209531,95452.0,95439.0,0.31385676]
[1736539748354,0.209531,95452.0,95440.0,1.5]
[1736539748572,0.0209531,95451.0,95440.0,1.5]
[1736539748773,0.209539,95448.0,95440.0,1.5]
[1736539749064,0.00331053,95447.0,95440.0,1.5]
[1736539749265,0.209542,95446.0,95440.0,1.5]
[1736539749521,0.00331053,95447.0,95440.0,1.5]
[1736539749706,0.209553,95441.0,95440.0,1.5]
[1736539750105,0.21314288,95441.0,95440.0,1.5]
[1736539750894,0.21314288,95441.0,95440.0,1.505]
[1736539750895,0.00358988,95441.0,95440.0,1.505]
[1736539751094,0.00358988,95441.0,95440.0,1.5]
[1736539751311,0.209542,95447.0,95440.0,1.5]
[1736539751495,0.209542,95447.0,95440.0,1.501]
[1736539751695,0.00360596,95446.0,95440.0,1.501]
[1736539751993,0.209544,95445.0,95440.0,1.5]
[1736539752398,0.419098,95443.0,95440.0,1.5]
[1736539752605,0.419098,95443.0,95440.0,1.501]
[1736539752806,0.00357876,95442.0,95440.0,1.501]
[1736539753607,0.209542,95446.0,95440.0,1.501]
[1736539753805,0.00358504,95445.0,95440.0,1.501]
[1736539754023,0.209546,95444.0,95440.0,1.502]
[1736539754418,0.419093,95444.0,95440.0,1.502]
[1736539754618,0.209551,95442.0,95440.0,1.502]
[1736539754820,0.209551,95442.0,95440.0,1.503]
[1736539755127,0.00358616,95441.0,95440.0,1.503]
[1736539755356,0.00358616,95441.0,95440.0,1.5]
[1736539755568,0.00358616,95441.0,95440.0,1.502]
[1736539755743,0.00358616,95441.0,95440.0,1.501]
[1736539757059,0.00358616,95441.0,95440.0,1.5]
[1736539757235,0.209546,95444.0,95440.0,1.5]
[1736539757444,0.00358188,95441.0,95440.0,1.501]
[1736539757791,0.209549,95443.0,95440.0,1.501]
[1736539758001,0.00358188,95441.0,95440.0,1.503]
[1736539758216,0.209549,95443.0,95440.0,1.501]
[1736539758390,0.00358188,95441.0,95440.0,1.501]
[1736539758588,0.209549,95443.0,95440.0,1.501]
[1736539758801,0.00358188,95441.0,95440.0,1.5]
[1736539758948,0.209549,95443.0,95440.0,1.501]
[1736539759157,0.00357881,95441.0,95440.0,1.501]
[1736539759536,0.00357978,95441.0,95440.0,0.001]
[1736539759711,0.209549,95443.0,95440.0,0.001]
[1736539759919,0.00357978,95441.0,95440.0,1.502]
[1736539760131,0.015268,95778.0,95440.0,1.60629976]
[1736539760132,0.209527,95454.0,95440.0,1.60629976]
[1736539760339,0.209533,95451.0,95441.0,0.17929976]
[1736539760554,0.20952,95457.0,95441.0,0.17929976]
[1736539760796,0.20952,95457.0,95449.0,1.5]
[1736539762177,0.21052,95457.0,95449.0,1.5]
[1736539762599,0.001,95457.0,95449.0,1.5]
[1736539763509,0.209507,95463.0,95449.0,1.5]
[1736539763903,0.209507,95463.0,95449.0,1.501]
[1736539764100,0.209514,95459.0,95449.0,1.501]
[1736539764312,0.209514,95459.0,95449.0,1.5]
[1736539764863,0.209522,95456.0,95449.0,1.5]
[1736539765067,0.2723763,95456.0,95449.0,1.502]
[1736539765478,0.209533,95451.0,95449.0,1.5]
[1736539765713,0.209522,95455.0,95449.0,0.002]
[1736539765877,0.0035945,95450.0,95449.0,0.002]
[1736539766076,0.209522,95455.0,95449.0,0.002]
[1736539766286,0.00359533,95450.0,95449.0,0.001]
[1736539766484,0.209522,95455.0,95449.0,0.003]
[1736539766698,0.00359533,95450.0,95449.0,0.003]
[1736539766871,0.00359533,95450.0,95442.0,1.5]
[1736539766872,0.209522,95455.0,95442.0,1.5]
[1736539767072,0.209522,95455.0,95442.0,1.60429976]
[1736539767073,0.00358372,95450.0,95442.0,1.60429976]
[1736539767266,0.209522,95455.0,95449.0,0.001]
[1736539767471,0.209514,95459.0,95449.0,0.001]
[1736539767788,0.00358781,95454.0,95442.0,0.31384976]
[1736539768134,0.00358678,95453.0,95445.0,1.5]
[1736539768396,0.00358678,95453.0,95449.0,0.003]
[1736539768594,0.209522,95455.0,95445.0,1.5]
[1736539768875,0.209531,95451.0,95449.0,0.001]
[1736539769086,0.209531,95451.0,95445.0,1.5]
[1736539769221,0.00358655,95450.0,95445.0,1.5]
[1736539769427,0.20954,95447.0,95445.0,1.503]
[1736539769628,0.20954,95447.0,95442.0,0.002]
[1736539769849,0.209544,95445.0,95442.0,0.002]
[1736539770240,0.209549,95443.0,95442.0,0.002]
[1736539770443,0.209557,95440.0,95434.0,0.0001706]
[1736539770648,0.209557,95440.0,95437.0,1.52134059]
[1736539771003,0.20956,95438.0,95437.0,1.52134059]
[1736539772186,0.209548,95444.0,95437.0,1.52134059]
[1736539772401,0.01069473,95462.0,95438.0,0.10534753]
[1736539772608,0.209512,95460.0,95446.0,0.0831]
[1736539772813,0.209512,95460.0,95447.0,0.31488731]
[1736539773011,0.209512,95460.0,95447.0,0.31383976]
[1736539773310,0.00776,95471.0,95447.0,0.31383976]
[1736539773311,0.209516,95459.0,95447.0,0.31383976]
[1736539773703,0.04488988,95458.0,95448.0,1.5]
[1736539773887,0.00298768,95458.0,95448.0,1.60429976]
[1736539774308,0.209535,95449.0,95448.0,1.5]
[1736539774953,0.21254408,95449.0,95448.0,1.5]
[1736539775353,0.21254408,95449.0,95448.0,1.501]
[1736539775894,0.210535,95449.0,95448.0,1.501]
[1736539777886,0.210535,95449.0,95448.0,1.5]
[1736539778082,0.210535,95449.0,95438.0,0.209558]
[1736539778373,0.21352649,95449.0,95438.0,0.31385776]
[1736539778603,0.04230585,95448.0,95439.0,1.5]
[1736539779079,0.209549,95443.0,95439.0,1.5]
[1736539779278,0.209546,95445.0,95439.0,1.5]
[1736539779546,0.00298628,95442.0,95439.0,1.5]
[1736539779975,0.209546,95445.0,95439.0,1.5]
[1736539780329,0.209549,95443.0,95439.0,1.5]
[1736539780961,0.00298559,95442.0,95439.0,1.5]
[1736539781133,0.209553,95441.0,95439.0,1.5]
[1736539781332,0.209553,95441.0,95439.0,1.501]
[1736539781542,0.00298559,95440.0,95439.0,1.501]
[1736539781895,0.38448535,95440.0,95439.0,0.002]
[1736539782087,0.023,95439.0,95425.0,0.0001706]
[1736539782385,0.209566,95435.0,95425.0,0.0001706]
[1736539782767,0.21254315,95435.0,95425.0,0.0001706]
[1736539784100,0.21254315,95435.0,95425.0,1.5001706]
[1736539784734,0.21354315,95435.0,95425.0,1.5001706]
[1736539785050,0.21554315,95435.0,95425.0,1.5001706]
[1736539785284,0.21254315,95435.0,95425.0,1.5001706]
[1736539785426,0.27707711,95435.0,95434.0,0.0011706]
[1736539785645,0.27707711,95435.0,95434.0,0.0021706]
[1736539785835,0.27707711,95435.0,95434.0,0.0011706]
[1736539786041,0.27707711,95435.0,95434.0,0.0001706]
[1736539786042,0.27807711,95435.0,95434.0,0.0001706]
[1736539786417,0.21254315,95435.0,95434.0,0.0001706]
[1736539786744,0.21354315,95435.0,95434.0,0.0001706]
[1736539788132,0.21254315,95435.0,95434.0,0.0001706]
[1736539788448,0.21454315,95435.0,95434.0,0.0001706]
[1736539788844,0.21554315,95435.0,95434.0,0.0001706]
[1736539789693,0.53515287,95435.0,95434.0,0.0001706]
[1736539793147,0.21554315,95435.0,95434.0,0.0001706]
[1736539793344,0.00597715,95435.0,95434.0,0.0001706]
[1736539794179,0.00497715,95435.0,95434.0,0.0001706]
[1736539794348,0.00297715,95435.0,95434.0,0.0001706]
[1736539794552,0.006,95435.0,95434.0,0.0001706]
[1736539794729,0.00908244,95435.0,95434.0,0.0001706]
[1736539794928,0.00308244,95435.0,95434.0,0.0001706]
[1736539795299,0.209563,95437.0,95434.0,0.0021706]
[1736539795607,0.0030832,95435.0,95434.0,0.0011706]
[1736539795829,0.419126,95437.0,95434.0,0.0001706]
[1736539796048,0.00308878,95435.0,95434.0,0.0001706]
[1736539796252,0.419126,95437.0,95434.0,0.0001706]
[1736539796435,0.00308878,95435.0,95434.0,0.0001706]
[1736539796965,0.419126,95437.0,95434.0,0.0001706]
[1736539797149,0.00308878,95435.0,95434.0,0.0001706]
[1736539797380,0.419126,95437.0,95434.0,0.0001706]
[1736539797662,0.419126,95437.0,95425.0,0.0001706]
[1736539797663,0.209579,95429.0,95425.0,0.0001706]
[1736539798179,0.00308228,95428.0,95425.0,0.0001706]
[1736539798791,0.209579,95429.0,95425.0,0.0001706]
[1736539799650,0.209574,95432.0,95425.0,0.0001706]
[1736539799851,0.209574,95432.0,95425.0,0.0021706]
[1736539800055,0.209577,95430.0,95425.0,0.0021706]
[1736539800268,0.00308414,95429.0,95425.0,0.0001706]
[1736539800476,0.00308414,95429.0,95425.0,0.2097576]
[1736539800682,0.210563,95437.0,95425.0,0.2107576]
[1736539800878,0.23342176,95437.0,95425.0,0.2137576]
[1736539801080,0.0030767,95428.0,95426.0,1.5]
[1736539801400,0.209563,95437.0,95426.0,1.5]
[1736539801600,0.20957,95434.0,95426.0,1.5]
[1736539801810,0.01026456,95442.0,95426.0,1.5]
[1736539801811,0.209582,95428.0,95426.0,1.5]
[1736539802211,0.209582,95428.0,95426.0,1.503]
[1736539802426,0.01803608,95443.0,95426.0,1.503]
[1736539802614,0.09396704,95454.0,95427.0,0.209584]
[1736539802817,0.30349204,95454.0,95433.0,0.20957]
[1736539802979,0.00312608,95453.0,95442.0,0.209551]